[Event "Titled Tuesday Blitz May 10 Early 2022"]
[White "Shtyka, Sergey"]
[Black "Oganian, Miran"]
[WhiteFideId "4138465"]
[BlackFideId "4122488"]
[WhiteElo "2014"]
[BlackElo "2357"]
[Result "0-1"]
[Round "02"]
[TimeControl "180+1"]
[Date "2022.05.11"]
[WhiteClock "0:00:03"]
[BlackClock "0:00:22"]

1. e4 {[%clk 0:03:00]}  e6 {[%clk 0:02:59]} 2. Nf3 {[%clk 0:03:00]}  d5 {[%clk 0:02:59]} 3. e5 {[%clk 0:03:01]}  c5 {[%clk 0:02:59]} 4. b4 {[%clk 0:03:01]}  cxb4 {[%clk 0:02:59]} 5. a3 {[%clk 0:03:01]}  Nc6 {[%clk 0:02:59]} 6. axb4 {[%clk 0:03:01]}  Bxb4 {[%clk 0:03:00]} 7. c3 {[%clk 0:03:01]}  Be7 {[%clk 0:03:01]} 8. d4 {[%clk 0:03:01]}  a6 {[%clk 0:03:01]} 9. Bd3 {[%clk 0:03:01]}  Bd7 {[%clk 0:03:02]} 10. O-O {[%clk 0:03:01]}  Rc8 {[%clk 0:03:02]} 11. Re1 {[%clk 0:02:59]}  Na5 {[%clk 0:03:02]} 12. Bf4 {[%clk 0:02:51]}  Nh6 {[%clk 0:03:01]} 13. Bxh6 {[%clk 0:02:50]}  gxh6 {[%clk 0:03:01]} 14. g3 {[%clk 0:02:41]}  Qc7 {[%clk 0:02:58]} 15. h4 {[%clk 0:02:32]}  Nc4 {[%clk 0:02:37]} 16. Qc1 {[%clk 0:02:31]}  Bf8 {[%clk 0:02:33]} 17. Kg2 {[%clk 0:02:25]}  Bb5 {[%clk 0:02:32]} 18. Qf4 {[%clk 0:02:17]}  Na3 {[%clk 0:02:03]} 19. Bxb5+ {[%clk 0:02:10]}  Nxb5 {[%clk 0:02:02]} 20. Nh2 {[%clk 0:02:06]}  h5 {[%clk 0:01:53]} 21. Nf3 {[%clk 0:02:06]}  h6 {[%clk 0:01:50]} 22. Ng1 {[%clk 0:01:51]}  Rg8 {[%clk 0:01:48]} 23. Ne2 {[%clk 0:01:49]}  Rg4 {[%clk 0:01:46]} 24. Qf3 {[%clk 0:01:48]}  Be7 {[%clk 0:01:01]} 25. Nf4 {[%clk 0:01:41]}  Bxh4 {[%clk 0:00:58]} 26. Nxh5 {[%clk 0:01:39]}  Rg6 {[%clk 0:00:57]} 27. Nf4 {[%clk 0:01:01]}  Rg8 {[%clk 0:00:42]} 28. Qh5 {[%clk 0:00:51]}  Qe7 {[%clk 0:00:42]} 29. Nxe6 {[%clk 0:00:41]}  Bxg3 {[%clk 0:00:42]} 30. fxg3 {[%clk 0:00:36]}  Qxe6 {[%clk 0:00:42]} 31. Re3 {[%clk 0:00:33]}  Qg6 {[%clk 0:00:39]} 32. Qf3 {[%clk 0:00:25]}  Nc7 {[%clk 0:00:25]} 33. Nd2 {[%clk 0:00:23]}  Ne6 {[%clk 0:00:25]} 34. Rf1 {[%clk 0:00:15]}  h5 {[%clk 0:00:24]} 35. Kf2 {[%clk 0:00:14]}  h4 {[%clk 0:00:24]} 36. Rg1 {[%clk 0:00:13]}  h3 {[%clk 0:00:24]} 37. Rh1 {[%clk 0:00:13]}  Ng5 {[%clk 0:00:24]} 38. Qxd5 {[%clk 0:00:08]}  Qc2 {[%clk 0:00:24]} 39. Re2 {[%clk 0:00:05]}  Qf5+ {[%clk 0:00:23]} 40. Ke1 {[%clk 0:00:03]}  Rxc3 {[%clk 0:00:22]} 0-1


[Site "https://www.chess.com"]

[Event "Titled Tuesday Blitz May 10 Early 2022"]
[White "Solovchuk, Oleksiy"]
[Black "Bacrot, Etienne"]
[WhiteFideId "14115220"]
[BlackFideId "605506"]
[WhiteElo "2305"]
[BlackElo "2673"]
[Result "0-1"]
[Round "02"]
[TimeControl "180+1"]
[Date "2022.05.10"]
[WhiteClock "0:01:31"]
[BlackClock "0:01:24"]

1. c4 {[%clk 0:03:00]}  e6 {[%clk 0:02:58]} 2. Nf3 {[%clk 0:03:00]}  d5 {[%clk 0:02:59]} 3. e3 {[%clk 0:03:00]}  Nf6 {[%clk 0:02:58]} 4. b3 {[%clk 0:03:01]}  Be7 {[%clk 0:02:59]} 5. Bb2 {[%clk 0:03:01]}  O-O {[%clk 0:02:59]} 6. Be2 {[%clk 0:03:02]}  b6 {[%clk 0:02:59]} 7. cxd5 {[%clk 0:03:00]}  exd5 {[%clk 0:02:58]} 8. O-O {[%clk 0:03:00]}  c5 {[%clk 0:02:58]} 9. d4 {[%clk 0:02:59]}  Nc6 {[%clk 0:02:53]} 10. Nc3 {[%clk 0:02:55]}  Bb7 {[%clk 0:02:39]} 11. Rc1 {[%clk 0:02:54]}  Rc8 {[%clk 0:02:37]} 12. dxc5 {[%clk 0:02:15]}  bxc5 {[%clk 0:02:36]} 13. Na4 {[%clk 0:02:15]}  Ne4 {[%clk 0:01:57]} 14. Ba3 {[%clk 0:02:14]}  Nb4 {[%clk 0:01:52]} 15. Nxc5 {[%clk 0:01:55]}  Rxc5 {[%clk 0:01:29]} 16. Rxc5 {[%clk 0:01:31]}  Bxc5 {[%clk 0:01:24]} 0-1


[Site "https://www.chess.com"]

[Event "Titled Tuesday Blitz May 10 Early 2022"]
[White "Stankovic, Ivan G"]
[Black "Atakhan, Abtin"]
[WhiteFideId "902837"]
[BlackFideId "22502203"]
[WhiteElo "2195"]
[BlackElo "2094"]
[Result "1-0"]
[Round "02"]
[TimeControl "180+1"]
[Date "2022.05.11"]
[WhiteClock "0:00:09"]
[BlackClock "0:00:01"]

1. e4 {[%clk 0:03:00]}  c5 {[%clk 0:02:58]} 2. c4 {[%clk 0:03:00]}  Nc6 {[%clk 0:02:58]} 3. Nc3 {[%clk 0:03:01]}  g6 {[%clk 0:02:58]} 4. g3 {[%clk 0:03:01]}  Bg7 {[%clk 0:02:59]} 5. Bg2 {[%clk 0:03:02]}  d6 {[%clk 0:03:00]} 6. d3 {[%clk 0:03:02]}  Nf6 {[%clk 0:03:00]} 7. Nge2 {[%clk 0:03:02]}  O-O {[%clk 0:03:01]} 8. O-O {[%clk 0:03:01]}  Ne8 {[%clk 0:03:02]} 9. Be3 {[%clk 0:03:00]}  Nc7 {[%clk 0:03:01]} 10. d4 {[%clk 0:03:01]}  cxd4 {[%clk 0:03:02]} 11. Nxd4 {[%clk 0:03:02]}  Ne6 {[%clk 0:03:02]} 12. Nde2 {[%clk 0:03:02]}  Ne5 {[%clk 0:02:59]} 13. b3 {[%clk 0:03:01]}  Ng4 {[%clk 0:02:59]} 14. Bd2 {[%clk 0:02:42]}  Bd7 {[%clk 0:02:56]} 15. h3 {[%clk 0:02:42]}  Ne5 {[%clk 0:02:55]} 16. Be3 {[%clk 0:02:41]}  Nc6 {[%clk 0:02:47]} 17. Qd2 {[%clk 0:02:40]}  a6 {[%clk 0:02:46]} 18. Rad1 {[%clk 0:02:35]}  b5 {[%clk 0:02:44]} 19. c5 {[%clk 0:02:32]}  Qa5 {[%clk 0:01:52]} 20. cxd6 {[%clk 0:02:26]}  exd6 {[%clk 0:01:53]} 21. Nd5 {[%clk 0:02:02]}  Qxd2 {[%clk 0:01:50]} 22. Rxd2 {[%clk 0:02:02]}  Rab8 {[%clk 0:01:33]} 23. Rfd1 {[%clk 0:01:53]}  Nc5 {[%clk 0:01:27]} 24. Nec3 {[%clk 0:01:16]}  b4 {[%clk 0:01:18]} 25. Na4 {[%clk 0:01:11]}  Nxa4 {[%clk 0:01:18]} 26. bxa4 {[%clk 0:01:12]}  Ne5 {[%clk 0:01:09]} 27. Nb6 {[%clk 0:01:12]}  Rxb6 {[%clk 0:01:01]} 28. Bxb6 {[%clk 0:01:11]}  Nc4 {[%clk 0:00:59]} 29. Rxd6 {[%clk 0:01:07]}  Bxa4 {[%clk 0:01:00]} 30. R1d3 {[%clk 0:00:57]}  Nxd6 {[%clk 0:00:47]} 31. Rxd6 {[%clk 0:00:57]}  Rc8 {[%clk 0:00:42]} 32. Bf1 {[%clk 0:00:54]}  Bb5 {[%clk 0:00:33]} 33. Bxb5 {[%clk 0:00:50]}  axb5 {[%clk 0:00:34]} 34. Rd8+ {[%clk 0:00:31]}  Rxd8 {[%clk 0:00:32]} 35. Bxd8 {[%clk 0:00:32]}  f5 {[%clk 0:00:27]} 36. exf5 {[%clk 0:00:30]}  gxf5 {[%clk 0:00:28]} 37. Kf1 {[%clk 0:00:27]}  Kf7 {[%clk 0:00:28]} 38. Ke2 {[%clk 0:00:27]}  Ke6 {[%clk 0:00:29]} 39. Kd3 {[%clk 0:00:27]}  Kd5 {[%clk 0:00:25]} 40. Bg5 {[%clk 0:00:27]}  Bd4 {[%clk 0:00:21]} 41. f3 {[%clk 0:00:26]}  Be5 {[%clk 0:00:16]} 42. g4 {[%clk 0:00:16]}  f4 {[%clk 0:00:10]} 43. Bd8 {[%clk 0:00:16]}  Bd6 {[%clk 0:00:08]} 44. Bb6 {[%clk 0:00:16]}  Be7 {[%clk 0:00:05]} 45. Bf2 {[%clk 0:00:16]}  Bd6 {[%clk 0:00:04]} 46. Be1 {[%clk 0:00:16]}  Bc5 {[%clk 0:00:03]} 47. Bd2 {[%clk 0:00:16]}  Bd6 {[%clk 0:00:04]} 48. h4 {[%clk 0:00:16]}  Ke5 {[%clk 0:00:03]} 49. h5 {[%clk 0:00:13]}  Kd5 {[%clk 0:00:02]} 50. Bc1 {[%clk 0:00:13]}  Ke5 {[%clk 0:00:02]} 51. Bb2+ {[%clk 0:00:11]}  Kd5 {[%clk 0:00:03]} 52. g5 {[%clk 0:00:12]}  Be7 {[%clk 0:00:01]} 53. g6 {[%clk 0:00:10]}  hxg6 {[%clk 0:00:01]} 54. h6 {[%clk 0:00:09]} 1-0


[Site "https://www.chess.com"]

[Event "Titled Tuesday Blitz May 10 Early 2022"]
[White "Steinberg, Nitzan"]
[Black "Suder, Jakub"]
[WhiteFideId "2801795"]
[BlackFideId "1195310"]
[WhiteElo "2471"]
[BlackElo "2058"]
[Result "1-0"]
[Round "02"]
[TimeControl "180+1"]
[Date "2022.05.10"]
[WhiteClock "0:00:04"]
[BlackClock "0:00:01"]

1. e4 {[%clk 0:03:00]}  c5 {[%clk 0:02:54]} 2. Nf3 {[%clk 0:03:01]}  e6 {[%clk 0:02:54]} 3. d4 {[%clk 0:02:57]}  cxd4 {[%clk 0:02:54]} 4. Nxd4 {[%clk 0:02:58]}  Nc6 {[%clk 0:02:54]} 5. Nc3 {[%clk 0:02:59]}  Nf6 {[%clk 0:02:54]} 6. Ndb5 {[%clk 0:02:50]}  Bc5 {[%clk 0:02:53]} 7. Bf4 {[%clk 0:02:45]}  O-O {[%clk 0:02:53]} 8. Bc7 {[%clk 0:02:44]}  Qe7 {[%clk 0:02:52]} 9. Bd6 {[%clk 0:02:44]}  Bxd6 {[%clk 0:02:53]} 10. Qxd6 {[%clk 0:02:44]}  Qd8 {[%clk 0:02:53]} 11. O-O-O {[%clk 0:02:40]}  a6 {[%clk 0:02:53]} 12. Nd4 {[%clk 0:02:40]}  Qb6 {[%clk 0:02:50]} 13. Nxc6 {[%clk 0:02:23]}  bxc6 {[%clk 0:02:50]} 14. f3 {[%clk 0:02:15]}  Ne8 {[%clk 0:02:46]} 15. Qa3 {[%clk 0:02:08]}  d6 {[%clk 0:02:42]} 16. Bd3 {[%clk 0:02:05]}  e5 {[%clk 0:02:35]} 17. Bc4 {[%clk 0:01:54]}  Be6 {[%clk 0:02:30]} 18. Qa4 {[%clk 0:01:49]}  Rb8 {[%clk 0:02:24]} 19. Bb3 {[%clk 0:01:47]}  Bxb3 {[%clk 0:02:13]} 20. axb3 {[%clk 0:01:44]}  a5 {[%clk 0:02:12]} 21. Qc4 {[%clk 0:01:37]}  Rc8 {[%clk 0:02:01]} 22. Rd2 {[%clk 0:01:36]}  g6 {[%clk 0:01:54]} 23. h4 {[%clk 0:01:36]}  Kg7 {[%clk 0:01:54]} 24. h5 {[%clk 0:01:36]}  h6 {[%clk 0:01:51]} 25. hxg6 {[%clk 0:01:33]}  fxg6 {[%clk 0:01:51]} 26. Qe6 {[%clk 0:01:19]}  Qc7 {[%clk 0:01:43]} 27. Nd1 {[%clk 0:01:11]}  Rd8 {[%clk 0:01:34]} 28. Qh3 {[%clk 0:01:09]}  Rh8 {[%clk 0:01:31]} 29. Ne3 {[%clk 0:01:09]}  Nf6 {[%clk 0:01:23]} 30. Qg3 {[%clk 0:01:06]}  Kf7 {[%clk 0:01:22]} 31. Rhd1 {[%clk 0:01:03]}  a4 {[%clk 0:01:15]} 32. bxa4 {[%clk 0:01:03]}  Qa7 {[%clk 0:01:15]} 33. Rd3 {[%clk 0:00:56]}  Qxa4 {[%clk 0:01:13]} 34. Ra3 {[%clk 0:00:56]}  Qb4 {[%clk 0:01:07]} 35. Ng4 {[%clk 0:00:50]}  Rd7 {[%clk 0:00:57]} 36. Nxf6 {[%clk 0:00:37]}  Kxf6 {[%clk 0:00:58]} 37. f4 {[%clk 0:00:32]}  Re8 {[%clk 0:00:23]} 38. Rf3 {[%clk 0:00:32]}  Qxe4 {[%clk 0:00:11]} 39. fxe5+ {[%clk 0:00:22]}  Kg7 {[%clk 0:00:11]} 40. exd6 {[%clk 0:00:17]}  Qa4 {[%clk 0:00:11]} 41. Ra3 {[%clk 0:00:16]}  Qe4 {[%clk 0:00:08]} 42. Qc3+ {[%clk 0:00:16]}  Qe5 {[%clk 0:00:06]} 43. Qxc6 {[%clk 0:00:11]}  Red8 {[%clk 0:00:03]} 44. Rad3 {[%clk 0:00:09]}  Qf4+ {[%clk 0:00:02]} 45. Kb1 {[%clk 0:00:09]}  Qe5 {[%clk 0:00:03]} 46. g4 {[%clk 0:00:07]}  h5 {[%clk 0:00:02]} 47. gxh5 {[%clk 0:00:07]}  gxh5 {[%clk 0:00:03]} 48. Rg1+ {[%clk 0:00:07]}  Kh8 {[%clk 0:00:03]} 49. Rd5 {[%clk 0:00:06]}  Qe2 {[%clk 0:00:02]} 50. Qc3+ {[%clk 0:00:05]}  Kh7 {[%clk 0:00:01]} 51. Qf6 {[%clk 0:00:04]} 1-0


[Site "https://www.chess.com"]

[Event "Titled Tuesday Blitz May 10 Early 2022"]
[White "Suleymanli, Aydin"]
[Black "Bettalli, Francesco"]
[WhiteFideId "13413937"]
[BlackFideId "2816453"]
[WhiteElo "2481"]
[BlackElo "2216"]
[Result "1-0"]
[Round "02"]
[TimeControl "180+1"]
[Date "2022.05.11"]
[WhiteClock "0:00:17"]
[BlackClock "0:00:09"]

1. e4 {[%clk 0:03:00]}  e5 {[%clk 0:02:58]} 2. Nf3 {[%clk 0:03:00]}  Nf6 {[%clk 0:02:58]} 3. d4 {[%clk 0:02:57]}  Nxe4 {[%clk 0:02:58]} 4. Bd3 {[%clk 0:02:56]}  d5 {[%clk 0:02:58]} 5. Nxe5 {[%clk 0:02:52]}  Bd6 {[%clk 0:02:57]} 6. O-O {[%clk 0:02:51]}  O-O {[%clk 0:02:55]} 7. Re1 {[%clk 0:02:41]}  f5 {[%clk 0:02:54]} 8. f3 {[%clk 0:02:39]}  Nc6 {[%clk 0:02:39]} 9. Bf4 {[%clk 0:02:15]}  Nxe5 {[%clk 0:02:30]} 10. Bxe5 {[%clk 0:02:13]}  Bxe5 {[%clk 0:02:28]} 11. dxe5 {[%clk 0:02:14]}  Nc5 {[%clk 0:02:13]} 12. Nc3 {[%clk 0:02:14]}  Ne6 {[%clk 0:02:12]} 13. Kh1 {[%clk 0:02:08]}  c6 {[%clk 0:02:11]} 14. Qd2 {[%clk 0:02:05]}  Qh4 {[%clk 0:02:10]} 15. Ne2 {[%clk 0:02:02]}  Bd7 {[%clk 0:02:09]} 16. c4 {[%clk 0:01:58]}  d4 {[%clk 0:02:07]} 17. b4 {[%clk 0:01:56]}  b6 {[%clk 0:02:07]} 18. a3 {[%clk 0:01:40]}  c5 {[%clk 0:02:06]} 19. b5 {[%clk 0:01:40]}  Rae8 {[%clk 0:02:04]} 20. a4 {[%clk 0:01:40]}  Ng5 {[%clk 0:02:01]} 21. Nf4 {[%clk 0:01:35]}  Qh6 {[%clk 0:01:55]} 22. Nd5 {[%clk 0:01:35]}  Re6 {[%clk 0:01:25]} 23. a5 {[%clk 0:01:29]}  Kh8 {[%clk 0:01:23]} 24. axb6 {[%clk 0:01:27]}  axb6 {[%clk 0:01:24]} 25. Ra7 {[%clk 0:01:26]}  Be8 {[%clk 0:01:23]} 26. Ra8 {[%clk 0:01:13]}  Qh5 {[%clk 0:01:21]} 27. Qf2 {[%clk 0:00:56]}  Rh6 {[%clk 0:01:06]} 28. Qg3 {[%clk 0:00:54]}  Ne6 {[%clk 0:00:54]} 29. h3 {[%clk 0:00:54]}  f4 {[%clk 0:00:49]} 30. Qh2 {[%clk 0:00:54]}  Qh4 {[%clk 0:00:43]} 31. Re2 {[%clk 0:00:50]}  Kg8 {[%clk 0:00:21]} 32. Nxb6 {[%clk 0:00:45]}  Ng5 {[%clk 0:00:20]} 33. Nd5 {[%clk 0:00:39]}  Bh5 {[%clk 0:00:21]} 34. Rxf8+ {[%clk 0:00:37]}  Kxf8 {[%clk 0:00:22]} 35. Qxf4+ {[%clk 0:00:37]}  Qxf4 {[%clk 0:00:22]} 36. Nxf4 {[%clk 0:00:38]}  Bf7 {[%clk 0:00:12]} 37. Rb2 {[%clk 0:00:37]}  Rb6 {[%clk 0:00:10]} 38. Nd5 {[%clk 0:00:37]}  Bxd5 {[%clk 0:00:09]} 39. cxd5 {[%clk 0:00:36]}  Nf7 {[%clk 0:00:09]} 40. f4 {[%clk 0:00:37]}  Ke7 {[%clk 0:00:09]} 41. d6+ {[%clk 0:00:37]}  Kd7 {[%clk 0:00:09]} 42. Ra2 {[%clk 0:00:37]}  Nd8 {[%clk 0:00:09]} 43. g4 {[%clk 0:00:32]}  Ne6 {[%clk 0:00:08]} 44. Ra7+ {[%clk 0:00:33]}  Kd8 {[%clk 0:00:08]} 45. f5 {[%clk 0:00:31]}  Nf4 {[%clk 0:00:09]} 46. Bc4 {[%clk 0:00:24]}  d3 {[%clk 0:00:08]} 47. Ra8+ {[%clk 0:00:23]}  Kd7 {[%clk 0:00:08]} 48. e6+ {[%clk 0:00:20]}  Kxd6 {[%clk 0:00:08]} 49. Bxd3 {[%clk 0:00:19]}  Nxd3 {[%clk 0:00:06]} 50. Rd8+ {[%clk 0:00:19]}  Ke7 {[%clk 0:00:07]} 51. Rxd3 {[%clk 0:00:19]}  Rxb5 {[%clk 0:00:08]} 52. Rd7+ {[%clk 0:00:19]}  Ke8 {[%clk 0:00:06]} 53. Rxg7 {[%clk 0:00:19]}  Rb2 {[%clk 0:00:06]} 54. Rc7 {[%clk 0:00:19]}  Rc2 {[%clk 0:00:06]} 55. f6 {[%clk 0:00:19]}  Kd8 {[%clk 0:00:06]} 56. Rc6 {[%clk 0:00:20]}  Rf2 {[%clk 0:00:06]} 57. f7 {[%clk 0:00:20]}  Ke7 {[%clk 0:00:06]} 58. Kg1 {[%clk 0:00:20]}  Rf6 {[%clk 0:00:05]} 59. g5 {[%clk 0:00:19]}  Rf4 {[%clk 0:00:05]} 60. h4 {[%clk 0:00:18]}  c4 {[%clk 0:00:06]} 61. Kg2 {[%clk 0:00:18]}  Rxh4 {[%clk 0:00:05]} 62. Rc7+ {[%clk 0:00:18]}  Kxe6 {[%clk 0:00:05]} 63. f8=Q {[%clk 0:00:18]}  Rg4+ {[%clk 0:00:06]} 64. Kf3 {[%clk 0:00:18]}  Rd4 {[%clk 0:00:07]} 65. Qf6+ {[%clk 0:00:18]}  Kd5 {[%clk 0:00:08]} 66. Rd7+ {[%clk 0:00:17]}  Kc5 {[%clk 0:00:09]} 67. Qxd4+ {[%clk 0:00:17]} 1-0


[Site "https://www.chess.com"]

[Event "Titled Tuesday Blitz May 10 Early 2022"]
[White "Terry, Renato"]
[Black "Sadykov, Ramil"]
[WhiteFideId "3803457"]
[BlackFideId "24113590"]
[WhiteElo "2577"]
[BlackElo "2280"]
[Result "1-0"]
[Round "02"]
[TimeControl "180+1"]
[Date "2022.05.11"]
[WhiteClock "0:00:35"]
[BlackClock "0:00:09"]

1. d4 {[%clk 0:03:00]}  d5 {[%clk 0:02:59]} 2. Nf3 {[%clk 0:02:59]}  Nf6 {[%clk 0:02:59]} 3. c4 {[%clk 0:02:59]}  e6 {[%clk 0:02:59]} 4. e3 {[%clk 0:02:58]}  a6 {[%clk 0:02:53]} 5. b3 {[%clk 0:02:58]}  c5 {[%clk 0:02:52]} 6. Bd3 {[%clk 0:02:57]}  dxc4 {[%clk 0:02:34]} 7. bxc4 {[%clk 0:02:54]}  Nc6 {[%clk 0:02:34]} 8. Bb2 {[%clk 0:02:52]}  cxd4 {[%clk 0:02:35]} 9. exd4 {[%clk 0:02:52]}  Be7 {[%clk 0:02:08]} 10. O-O {[%clk 0:02:35]}  O-O {[%clk 0:02:08]} 11. Nbd2 {[%clk 0:02:35]}  Nb4 {[%clk 0:01:46]} 12. Bb1 {[%clk 0:02:10]}  b5 {[%clk 0:01:44]} 13. c5 {[%clk 0:02:04]}  Bb7 {[%clk 0:01:41]} 14. Qe2 {[%clk 0:02:03]}  Qd5 {[%clk 0:01:20]} 15. Re1 {[%clk 0:01:57]}  Qh5 {[%clk 0:01:14]} 16. Qf1 {[%clk 0:01:36]}  Nbd5 {[%clk 0:01:01]} 17. Re5 {[%clk 0:01:36]}  Qg4 {[%clk 0:00:56]} 18. h3 {[%clk 0:01:35]}  Qf4 {[%clk 0:00:55]} 19. g3 {[%clk 0:01:36]}  Qh6 {[%clk 0:00:55]} 20. Bc1 {[%clk 0:01:30]}  Nd7 {[%clk 0:00:48]} 21. Re1 {[%clk 0:01:27]}  Qh5 {[%clk 0:00:35]} 22. g4 {[%clk 0:01:17]}  Qh6 {[%clk 0:00:34]} 23. Ne4 {[%clk 0:01:17]}  Nf4 {[%clk 0:00:26]} 24. Kh2 {[%clk 0:01:12]}  Nf6 {[%clk 0:00:21]} 25. Kg3 {[%clk 0:00:43]}  Nxe4+ {[%clk 0:00:19]} 26. Bxe4 {[%clk 0:00:44]}  Bxe4 {[%clk 0:00:20]} 27. Bxf4 {[%clk 0:00:43]}  g5 {[%clk 0:00:17]} 28. Rxe4 {[%clk 0:00:42]}  gxf4+ {[%clk 0:00:17]} 29. Kh2 {[%clk 0:00:43]}  f5 {[%clk 0:00:16]} 30. gxf5 {[%clk 0:00:38]}  Rxf5 {[%clk 0:00:17]} 31. Rae1 {[%clk 0:00:38]}  Rf6 {[%clk 0:00:10]} 32. Qe2 {[%clk 0:00:38]}  Kf7 {[%clk 0:00:11]} 33. Ne5+ {[%clk 0:00:35]}  Kg7 {[%clk 0:00:09]} 34. Ng4 {[%clk 0:00:36]}  f3 {[%clk 0:00:08]} 35. Qd3 {[%clk 0:00:35]}  Qf4+ {[%clk 0:00:09]} 36. Rxf4 {[%clk 0:00:35]} 1-0


[Site "https://www.chess.com"]

[Event "Titled Tuesday Blitz May 10 Early 2022"]
[White "Thomas, Anysia"]
[Black "Batsiashvili, Nino"]
[WhiteFideId "670472"]
[BlackFideId "13602993"]
[WhiteElo "2002"]
[BlackElo "2193"]
[Result "0-1"]
[Round "02"]
[TimeControl "180+1"]
[Date "2022.05.11"]
[WhiteClock "0:00:05"]
[BlackClock "0:00:47"]

1. d4 {[%clk 0:02:56]}  f5 {[%clk 0:02:57]} 2. Nf3 {[%clk 0:02:55]}  Nf6 {[%clk 0:02:56]} 3. g3 {[%clk 0:02:49]}  g6 {[%clk 0:02:56]} 4. Bg2 {[%clk 0:02:49]}  Bg7 {[%clk 0:02:57]} 5. O-O {[%clk 0:02:49]}  O-O {[%clk 0:02:57]} 6. b3 {[%clk 0:02:48]}  a5 {[%clk 0:02:55]} 7. Bb2 {[%clk 0:02:48]}  a4 {[%clk 0:02:55]} 8. a3 {[%clk 0:02:45]}  axb3 {[%clk 0:02:54]} 9. cxb3 {[%clk 0:02:44]}  d6 {[%clk 0:02:52]} 10. Nbd2 {[%clk 0:02:43]}  Nbd7 {[%clk 0:02:53]} 11. Re1 {[%clk 0:02:43]}  Nb6 {[%clk 0:02:53]} 12. e4 {[%clk 0:02:43]}  fxe4 {[%clk 0:02:54]} 13. Nxe4 {[%clk 0:02:43]}  Nxe4 {[%clk 0:02:54]} 14. Rxe4 {[%clk 0:02:44]}  Bf5 {[%clk 0:02:54]} 15. Re2 {[%clk 0:02:42]}  c6 {[%clk 0:02:54]} 16. h4 {[%clk 0:02:08]}  Bg4 {[%clk 0:02:50]} 17. Qd3 {[%clk 0:01:57]}  Nd5 {[%clk 0:02:51]} 18. Rae1 {[%clk 0:01:46]}  Qd7 {[%clk 0:02:51]} 19. Rd2 {[%clk 0:01:25]}  Rf6 {[%clk 0:02:46]} 20. Ng5 {[%clk 0:01:23]}  Raf8 {[%clk 0:02:45]} 21. Qc4 {[%clk 0:00:47]}  h6 {[%clk 0:02:36]} 22. Ne4 {[%clk 0:00:31]}  R6f7 {[%clk 0:02:30]} 23. Nc3 {[%clk 0:00:28]}  e6 {[%clk 0:02:24]} 24. Nxd5 {[%clk 0:00:28]}  exd5 {[%clk 0:02:21]} 25. Qd3 {[%clk 0:00:28]}  Bf5 {[%clk 0:02:16]} 26. Qe3 {[%clk 0:00:28]}  b5 {[%clk 0:02:09]} 27. b4 {[%clk 0:00:28]}  Kh7 {[%clk 0:02:05]} 28. Bc1 {[%clk 0:00:27]}  Qd8 {[%clk 0:01:59]} 29. h5 {[%clk 0:00:19]}  gxh5 {[%clk 0:01:58]} 30. Bf3 {[%clk 0:00:19]}  Bg4 {[%clk 0:01:55]} 31. Qd3+ {[%clk 0:00:18]}  Kh8 {[%clk 0:01:53]} 32. Bg2 {[%clk 0:00:16]}  Qf6 {[%clk 0:01:53]} 33. f4 {[%clk 0:00:13]}  Bf5 {[%clk 0:01:52]} 34. Qf3 {[%clk 0:00:12]}  Qg6 {[%clk 0:01:51]} 35. Rde2 {[%clk 0:00:11]}  Be4 {[%clk 0:01:51]} 36. Qf2 {[%clk 0:00:11]}  Bxg2 {[%clk 0:01:46]} 37. Kxg2 {[%clk 0:00:12]}  Rxf4 {[%clk 0:01:45]} 38. Bxf4 {[%clk 0:00:12]}  Qg4 {[%clk 0:01:42]} 39. Re8 {[%clk 0:00:11]}  h4 {[%clk 0:01:40]} 40. Rxf8+ {[%clk 0:00:11]}  Bxf8 {[%clk 0:01:41]} 41. Be5+ {[%clk 0:00:09]}  Kg8 {[%clk 0:01:41]} 42. Bf4 {[%clk 0:00:08]}  Bg7 {[%clk 0:01:38]} 43. Kh2 {[%clk 0:00:08]}  hxg3+ {[%clk 0:01:32]} 44. Qxg3 {[%clk 0:00:09]}  Qh5+ {[%clk 0:01:29]} 45. Kg2 {[%clk 0:00:09]}  Qf5 {[%clk 0:01:29]} 46. Re8+ {[%clk 0:00:08]}  Kf7 {[%clk 0:01:27]} 47. Re2 {[%clk 0:00:08]}  Bxd4 {[%clk 0:01:26]} 48. Be3 {[%clk 0:00:07]}  Be5 {[%clk 0:01:23]} 49. Rf2 {[%clk 0:00:07]}  Bxg3 {[%clk 0:01:17]} 50. Rxf5+ {[%clk 0:00:07]}  Ke6 {[%clk 0:01:17]} 51. Rh5 {[%clk 0:00:07]}  Be5 {[%clk 0:01:16]} 52. Rxh6+ {[%clk 0:00:07]}  Kf5 {[%clk 0:01:17]} 53. Kf3 {[%clk 0:00:08]}  d4 {[%clk 0:01:17]} 54. Bd2 {[%clk 0:00:06]}  Bf6 {[%clk 0:01:17]} 55. Rh5+ {[%clk 0:00:07]}  Ke6 {[%clk 0:01:15]} 56. Rh6 {[%clk 0:00:07]}  Ke5 {[%clk 0:01:13]} 57. Rh7 {[%clk 0:00:06]}  c5 {[%clk 0:01:06]} 58. Bf4+ {[%clk 0:00:06]}  Kd5 {[%clk 0:01:05]} 59. Rh6 {[%clk 0:00:06]}  Be7 {[%clk 0:01:04]} 60. Rh5+ {[%clk 0:00:05]}  Kc4 {[%clk 0:01:04]} 61. Ke4 {[%clk 0:00:03]}  d5+ {[%clk 0:01:03]} 62. Kf3 {[%clk 0:00:03]}  cxb4 {[%clk 0:01:00]} 63. axb4 {[%clk 0:00:03]}  Bxb4 {[%clk 0:01:00]} 64. Rh2 {[%clk 0:00:04]}  Bc3 {[%clk 0:01:00]} 65. Rg2 {[%clk 0:00:04]}  d3 {[%clk 0:00:59]} 66. Bd2 {[%clk 0:00:05]}  b4 {[%clk 0:00:58]} 67. Ke3 {[%clk 0:00:05]}  d4+ {[%clk 0:00:58]} 68. Ke4 {[%clk 0:00:06]}  b3 {[%clk 0:00:58]} 69. Bxc3 {[%clk 0:00:06]}  dxc3 {[%clk 0:00:56]} 70. Rg8 {[%clk 0:00:06]}  b2 {[%clk 0:00:49]} 71. Rc8+ {[%clk 0:00:06]}  Kb3 {[%clk 0:00:49]} 72. Rb8+ {[%clk 0:00:06]}  Kc2 {[%clk 0:00:49]} 73. Ke3 {[%clk 0:00:05]}  b1=Q {[%clk 0:00:47]} 74. Rxb1 {[%clk 0:00:04]}  Kxb1 {[%clk 0:00:47]} 75. Kxd3 {[%clk 0:00:05]}  c2 {[%clk 0:00:47]} 0-1


[Site "https://www.chess.com"]